Workbook

Sheet Μουσείο Βραυρώνας
A1: ΜΟΥΣΕΙΟ ΒΡΑΥΡΩΝΑΣ
A3: 2014 | B3: ΕΙΣΙΤΗΡΙΑ | H3: 2015 | I3: ΕΙΣΙΤΗΡΙΑ | O3: 2016 | P3: ΕΙΣΙΤΗΡΙΑ
C4: ΚΥΡΙΑ ΕΝΙΑΙΑ | D4: ΜΕΙΩΜΕΝΑ | E4: ΕΛΕΥΘΕΡΑΣ | F4: ΣΥΝΟΛΑ ΕΙΣΙΤΗΡΙΩΝ | J4: ΚΥΡΙΑ ΕΝΙΑΙΑ | K4: ΜΕΙΩΜΕΝΑ | L4: ΕΛΕΥΘΕΡΑΣ | M4: ΣΥΝΟΛΑ ΕΙΣΙΤΗΡΙΩΝ | Q4: ΚΥΡΙΑ ΕΝΙΑΙΑ | R4: ΜΕΙΩΜΕΝΑ | S4: ΕΛΕΥΘΕΡΑΣ | T4: ΣΥΝΟΛΑ ΕΙΣΙΤΗΡΙΩΝ
B5: Ιανουάριος | C5: 134 | D5: 127 | E5: 307 | F5: =SUM(C5:E5) -> 568 | I5: Ιανουάριος | J5: 75 | K5: 94 | L5: 300 | M5: =SUM(J5:L5) -> 469 | P5: Ιανουάριος | Q5: 139 | R5: 115 | S5: 1722 | T5: =SUM(Q5:S5) -> 1976
B6: Φεβρουάριος | C6: 128 | D6: 27 | E6: 262 | F6: 417 | I6: Φεβρουάριος | J6: 118 | K6: 60 | L6: 440 | M6: 618 | P6: Φεβρουάριος | Q6: 130 | R6: 80 | S6: 1894 | T6: 2104
B7: Μάρτιος | C7: 224 | D7: 134 | E7: 358 | F7: 716 | I7: Μάρτιος | J7: 100 | K7: 84 | L7: 674 | M7: 858 | P7: Μάρτιος | Q7: 137 | R7: 204 | S7: 2059 | T7: 2400
B8: Απρίλιος | C8: 194 | D8: 101 | E8: 295 | F8: 590 | I8: Απρίλιος | J8: 315 | K8: 127 | L8: 286 | M8: 728 | P8: Απρίλιος | Q8: 370 | R8: 109 | S8: 2261 | T8: 2740
B9: Μάιος | C9: 348 | D9: 129 | E9: 420 | F9: 897 | I9: Μάιος | J9: 490 | K9: 256 | L9: 2097 | M9: 2843 | P9: Μάιος | Q9: 278 | R9: 272 | S9: 3386 | T9: 3936
B10: Ιούνιος | C10: 258 | D10: 97 | E10: 292 | F10: 647 | I10: Ιούνιος | J10: 379 | K10: 137 | L10: 2147 | M10: 2663 | P10: Ιούνιος | Q10: 294 | R10: 159 | S10: 3108 | T10: 3561
B11: Ιούλιος | C11: 318 | D11: 67 | E11: 385 | F11: 770 | I11: Ιούλιος | J11: 382 | K11: 112 | L11: 1952 | M11: 2446 | P11: Ιούλιος | Q11: 325 | R11: 110 | S11: 2538 | T11: 2973
B12: Αύγουστος | C12: 362 | D12: 38 | E12: 316 | F12: 716 | I12: Αύγουστος | J12: 370 | K12: 78 | L12: 1451 | M12: 1899 | P12: Αύγουστος | Q12: 474 | R12: 70 | S12: 1649 | T12: 2193
B13: Σεπτέμβριος | C13: 377 | D13: 116 | E13: 438 | F13: 931 | I13: Σεπτέμβριος | J13: 293 | K13: 143 | L13: 1382 | M13: 1818 | P13: Σεπτέμβριος | T13: 0
B14: Οκτώβριος | C14: 425 | D14: 243 | E14: 473 | F14: 1141 | I14: Οκτώβριος | J14: 299 | K14: 163 | L14: 2291 | M14: 2753 | P14: Οκτώβριος | T14: 0
B15: Νοέμβριος | C15: 235 | D15: 242 | E15: 200 | F15: 677 | I15: Νοέμβριος | J15: 136 | K15: 148 | L15: 2315 | M15: 2599 | P15: Νοέμβριος | T15: 0
B16: Δεκέμβριος | C16: 66 | D16: 29 | E16: 425 | F16: 520 | I16: Δεκέμβριος | J16: 115 | K16: 64 | L16: 1758 | M16: 1937 | P16: Δεκέμβριος | T16: 0
B17: ΣΥΝΟΛΑ 2014 | C17: =SUM(C5:C16) -> 3069 | D17: =SUM(D5:D16) -> 1350 | E17: =SUM(E5:E16) -> 4171 | F17: =SUM(F5:F16) -> 8590 | I17: ΣΥΝΟΛΑ 2015 | J17: =SUM(J5:J16) -> 3072 | K17: =SUM(K5:K16) -> 1466 | L17: =SUM(L5:L16) -> 17093 | M17: =SUM(M5:M16) -> 21631 | P17: ΣΥΝΟΛΑ 2016 | Q17: =SUM(Q5:Q16) -> 2147 | R17: =SUM(R5:R16) -> 1119 | S17: 18617 | T17: 21883

Sheet Αρχ.Χώρος Βραυρώνας
A1: ΑΡΧΑΙΟΛΟΓΙΚΟΣ ΧΩΡΟΣ ΒΡΑΥΡΩΝΑΣ
A3: 2014 | B3: ΕΙΣΙΤΗΡΙΑ | H3: 2015 | I3: ΕΙΣΙΤΗΡΙΑ | O3: 2016 | P3: ΕΙΣΙΤΗΡΙΑ
C4: ΚΥΡΙΑ ΕΝΙΑΙΑ | D4: ΜΕΙΩΜΕΝΑ | E4: ΕΛΕΥΘΕΡΑΣ | F4: ΣΥΝΟΛΑ ΕΙΣΙΤΗΡΙΩΝ | J4: ΚΥΡΙΑ ΕΝΙΑΙΑ | K4: ΜΕΙΩΜΕΝΑ | L4: ΕΛΕΥΘΕΡΑΣ | M4: ΣΥΝΟΛΑ ΕΙΣΙΤΗΡΙΩΝ | Q4: ΚΥΡΙΑ ΕΝΙΑΙΑ | R4: ΜΕΙΩΜΕΝΑ | S4: ΕΛΕΥΘΕΡΑΣ | T4: ΣΥΝΟΛΑ ΕΙΣΙΤΗΡΙΩΝ
B5: Ιανουάριος | F5: =SUM(C5:E5) -> 0 | I5: Ιανουάριος | J5: 39 | K5: 11 | L5: 154 | M5: =SUM(J5:L5) -> 204 | P5: Ιανουάριος | Q5: 66 | R5: 47 | S5: 1819 | T5: =SUM(Q5:S5) -> 1932
B6: Φεβρουάριος | F6: 0 | I6: Φεβρουάριος | J6: 36 | K6: 2 | L6: 340 | M6: 378 | P6: Φεβρουάριος | Q6: 99 | R6: 24 | S6: 2095 | T6: 2218
B7: Μάρτιος | F7: 0 | I7: Μάρτιος | J7: 57 | K7: 7 | L7: 280 | M7: 344 | P7: Μάρτιος | Q7: 81 | R7: 30 | S7: 2247 | T7: 2358
B8: Απρίλιος | F8: 0 | I8: Απρίλιος | J8: 155 | K8: 27 | L8: 818 | M8: 1000 | P8: Απρίλιος | Q8: 121 | R8: 27 | S8: 2170 | T8: 2318
B9: Μάιος | F9: 0 | I9: Μάιος | J9: 199 | K9: 79 | L9: 2618 | M9: 2896 | P9: Μάιος | Q9: 215 | R9: 104 | S9: 3121 | T9: 3440
B10: Ιούνιος | F10: 0 | I10: Ιούνιος | J10: 119 | K10: 35 | L10: 2616 | M10: 2770 | P10: Ιούνιος | Q10: 122 | R10: 58 | S10: 2816 | T10: 2996
B11: Ιούλιος | C11: 175 | D11: 8 | E11: 147 | F11: 330 | I11: Ιούλιος | J11: 141 | K11: 30 | L11: 2076 | M11: 2247 | P11: Ιούλιος | Q11: 151 | R11: 38 | S11: 2809 | T11: 2998
B12: Αύγουστος | C12: 296 | D12: 28 | E12: 248 | F12: 572 | I12: Αύγουστος | J12: 156 | K12: 11 | L12: 1463 | M12: 1630 | P12: Αύγουστος | Q12: 265 | R12: 29 | S12: 1566 | T12: 1860
B13: Σεπτέμβριος | C13: 256 | D13: 88 | E13: 292 | F13: 636 | I13: Σεπτέμβριος | J13: 196 | K13: 43 | L13: 1504 | M13: 1743 | P13: Σεπτέμβριος | T13: 0
B14: Οκτώβριος | C14: 298 | D14: 100 | E14: 313 | F14: 711 | I14: Οκτώβριος | J14: 207 | K14: 43 | L14: 2066 | M14: 2316 | P14: Οκτώβριος | T14: 0
B15: Νοέμβριος | C15: 179 | D15: 128 | E15: 440 | F15: 747 | I15: Νοέμβριος | J15: 62 | K15: 50 | L15: 2315 | M15: 2427 | P15: Νοέμβριος | T15: 0
B16: Δεκέμβριος | C16: 26 | D16: 6 | E16: 176 | F16: 208 | I16: Δεκέμβριος | J16: 29 | K16: 5 | L16: 1834 | M16: 1868 | P16: Δεκέμβριος | T16: 0
B17: ΣΥΝΟΛΑ 2014 | C17: =SUM(C5:C16) -> 1230 | D17: =SUM(D5:D16) -> 358 | E17: 1616 | F17: 3204 | I17: ΣΥΝΟΛΑ 2015 | J17: =SUM(J5:J16) -> 1396 | K17: =SUM(K5:K16) -> 343 | L17: 18084 | M17: 19823 | P17: ΣΥΝΟΛΑ 2016 | Q17: =SUM(Q5:Q16) -> 1120 | R17: =SUM(R5:R16) -> 357 | S17: 18643 | T17: 20120

Sheet Αρχ.Χώρος Σουνίου
A1: ΑΡΧΑΙΟΛΟΓΙΚΟΣ ΧΩΡΟΣ ΣΟΥΝΙΟΥ
A3: 2014 | B3: ΕΙΣΙΤΗΡΙΑ | H3: 2015 | I3: ΕΙΣΙΤΗΡΙΑ | O3: 2016 | P3: ΕΙΣΙΤΗΡΙΑ
C4: ΚΥΡΙΑ ΕΝΙΑΙΑ | D4: ΜΕΙΩΜΕΝΑ | E4: ΕΛΕΥΘΕΡΑΣ | F4: ΣΥΝΟΛΑ ΕΙΣΙΤΗΡΙΩΝ | J4: ΚΥΡΙΑ ΕΝΙΑΙΑ | K4: ΜΕΙΩΜΕΝΑ | L4: ΕΛΕΥΘΕΡΑΣ | M4: ΣΥΝΟΛΑ ΕΙΣΙΤΗΡΙΩΝ | Q4: ΚΥΡΙΑ ΕΝΙΑΙΑ | R4: ΜΕΙΩΜΕΝΑ | S4: ΕΛΕΥΘΕΡΑΣ | T4: ΣΥΝΟΛΑ ΕΙΣΙΤΗΡΙΩΝ
B5: Ιανουάριος | C5: 4228 | D5: 530 | E5: 1465 | F5: =SUM(C5:E5) -> 6223 | I5: Ιανουάριος | J5: 4516 | K5: 719 | L5: 1446 | M5: =SUM(J5:L5) -> 6681 | P5: Ιανουάριος | Q5: 4946 | R5: 772 | S5: 1589 | T5: =SUM(Q5:S5) -> 7307
B6: Φεβρουάριος | C6: 4219 | D6: 308 | E6: 2137 | F6: 6664 | I6: Φεβρουάριος | J6: 5106 | K6: 428 | L6: 2301 | M6: 7835 | P6: Φεβρουάριος | Q6: 6574 | R6: 613 | S6: 3005 | T6: 10192
B7: Μάρτιος | C7: 7554 | D7: 666 | E7: 4989 | F7: 13209 | I7: Μάρτιος | J7: 7487 | K7: 939 | L7: 9533 | M7: 17959 | P7: Μάρτιος | Q7: 9284 | R7: 899 | S7: 5735 | T7: 15918
B8: Απρίλιος | C8: 11987 | D8: 1555 | E8: 4902 | F8: 18444 | I8: Απρίλιος | J8: 15766 | K8: 1866 | L8: 10108 | M8: 27740 | P8: Απρίλιος | Q8: 12733 | R8: 1670 | S8: 5796 | T8: 20199
B9: Μάιος | C9: 17009 | D9: 2689 | E9: 3516 | F9: 23214 | I9: Μάιος | J9: 23083 | K9: 3793 | L9: 3675 | M9: 30551 | P9: Μάιος | Q9: 18300 | R9: 3104 | S9: 4250 | T9: 25654
B10: Ιούνιος | C10: 17914 | D10: 2558 | E10: 2335 | F10: 22807 | I10: Ιούνιος | J10: 21793 | K10: 3164 | L10: 3884 | M10: 28841 | P10: Ιούνιος | Q10: 18413 | R10: 2777 | S10: 3243 | T10: 24433
B11: Ιούλιος | C11: 19954 | D11: 1486 | E11: 1704 | F11: 23144 | I11: Ιούλιος | J11: 23342 | K11: 1806 | L11: 2137 | M11: 27285 | P11: Ιούλιος | Q11: 20881 | R11: 1504 | S11: 3828 | T11: 26213
B12: Αύγουστος | C12: 21839 | D12: 1357 | E12: 2370 | F12: 25566 | I12: Αύγουστος | J12: 24663 | K12: 1508 | L12: 2195 | M12: 28366 | P12: Αύγουστος | Q12: 21758 | R12: 1654 | S12: 3784 | T12: 27196
B13: Σεπτέμβριος | C13: 19743 | D13: 1969 | E13: 3920 | F13: 25632 | I13: Σεπτέμβριος | J13: 20811 | K13: 2641 | L13: 0 | M13: 23452 | P13: Σεπτέμβριος | T13: 0
B14: Οκτώβριος | C14: 17569 | D14: 2307 | E14: 3752 | F14: 23628 | I14: Οκτώβριος | J14: 17276 | K14: 2229 | L14: 3591 | M14: 23096 | P14: Οκτώβριος | T14: 0
B15: Νοέμβριος | C15: 6313 | D15: 423 | E15: 2097 | F15: 8833 | I15: Νοέμβριος | J15: 7043 | K15: 747 | L15: 1586 | M15: 9376 | P15: Νοέμβριος | T15: 0
B16: Δεκέμβριος | C16: 3981 | D16: 359 | E16: 1567 | F16: 5907 | I16: Δεκέμβριος | J16: 3551 | K16: 341 | L16: 1204 | M16: 5096 | P16: Δεκέμβριος | T16: 0
B17: ΣΥΝΟΛΑ 2014 | C17: =SUM(C5:C16) -> 152310 | D17: =SUM(D5:D16) -> 16207 | E17: 34754 | F17: 203271 | I17: ΣΥΝΟΛΑ 2015 | J17: =SUM(J5:J16) -> 174437 | K17: =SUM(K5:K16) -> 20181 | L17: 41660 | M17: 236278 | P17: ΣΥΝΟΛΑ 2016 | Q17: =SUM(Q5:Q16) -> 112889 | R17: =SUM(R5:R16) -> 12993 | S17: 31230 | T17: 157112

Sheet Μουσείο Λαυρίου
A1: ΜΟΥΣΕΙΟ ΛΑΥΡΙΟΥ
A3: 2014 | B3: ΕΙΣΙΤΗΡΙΑ | H3: 2015 | I3: ΕΙΣΙΤΗΡΙΑ | O3: 2016 | P3: ΕΙΣΙΤΗΡΙΑ
C4: ΚΥΡΙΑ ΕΝΙΑΙΑ | D4: ΜΕΙΩΜΕΝΑ | E4: ΕΛΕΥΘΕΡΑΣ | F4: ΣΥΝΟΛΑ ΕΙΣΙΤΗΡΙΩΝ | J4: ΚΥΡΙΑ ΕΝΙΑΙΑ | K4: ΜΕΙΩΜΕΝΑ | L4: ΕΛΕΥΘΕΡΑΣ | M4: ΣΥΝΟΛΑ ΕΙΣΙΤΗΡΙΩΝ | Q4: ΚΥΡΙΑ ΕΝΙΑΙΑ | R4: ΜΕΙΩΜΕΝΑ | S4: ΕΛΕΥΘΕΡΑΣ | T4: ΣΥΝΟΛΑ ΕΙΣΙΤΗΡΙΩΝ
B5: Ιανουάριος | C5: 25 | D5: 2 | E5: 22 | F5: =SUM(C5:E5) -> 49 | I5: Ιανουάριος | J5: 42 | K5: 42 | L5: 16 | M5: =SUM(J5:L5) -> 100 | P5: Ιανουάριος | Q5: 19 | R5: 107 | S5: 14 | T5: =SUM(Q5:S5) -> 140
B6: Φεβρουάριος | C6: 35 | D6: 56 | E6: 51 | F6: 142 | I6: Φεβρουάριος | J6: 17 | K6: 18 | L6: 10 | M6: 45 | P6: Φεβρουάριος | Q6: 85 | R6: 55 | S6: 60 | T6: 200
B7: Μάρτιος | C7: 34 | D7: 61 | E7: 34 | F7: 129 | I7: Μάρτιος | J7: 74 | K7: 34 | L7: 49 | M7: 157 | P7: Μάρτιος | Q7: 37 | R7: 8 | S7: 126 | T7: 171
B8: Απρίλιος | C8: 27 | D8: 11 | E8: 81 | F8: 119 | I8: Απρίλιος | J8: 26 | K8: 19 | L8: 69 | M8: 114 | P8: Απρίλιος | Q8: 82 | R8: 139 | S8: 25 | T8: 246
B9: Μάιος | C9: 72 | D9: 59 | E9: 131 | F9: 262 | I9: Μάιος | J9: 68 | K9: 67 | L9: 90 | M9: 225 | P9: Μάιος | Q9: 56 | R9: 54 | S9: 71 | T9: 181
B10: Ιούνιος | C10: 46 | D10: 45 | E10: 37 | F10: 128 | I10: Ιούνιος | J10: 82 | K10: 42 | L10: 66 | M10: 190 | P10: Ιούνιος | Q10: 52 | R10: 90 | S10: 136 | T10: 278
B11: Ιούλιος | C11: 85 | D11: 15 | E11: 16 | F11: 116 | I11: Ιούλιος | J11: 43 | K11: 5 | L11: 13 | M11: 61 | P11: Ιούλιος | Q11: 59 | R11: 31 | S11: 58 | T11: 148
B12: Αύγουστος | C12: 64 | D12: 20 | E12: 33 | F12: 117 | I12: Αύγουστος | J12: 73 | K12: 25 | L12: 62 | M12: 160 | P12: Αύγουστος | Q12: 128 | R12: 20 | S12: 46 | T12: 194
B13: Σεπτέμβριος | C13: 38 | D13: 14 | E13: 60 | F13: 112 | I13: Σεπτέμβριος | J13: 46 | K13: 23 | L13: 52 | M13: 121 | P13: Σεπτέμβριος | T13: 0
B14: Οκτώβριος | C14: 45 | D14: 127 | E14: 18 | F14: 190 | I14: Οκτώβριος | J14: 73 | K14: 56 | L14: 106 | M14: 235 | P14: Οκτώβριος | T14: 0
B15: Νοέμβριος | C15: 14 | D15: 83 | E15: 24 | F15: 121 | I15: Νοέμβριος | J15: 43 | K15: 103 | L15: 33 | M15: 179 | P15: Νοέμβριος | T15: 0
B16: Δεκέμβριος | C16: 22 | D16: 36 | E16: 27 | F16: 85 | I16: Δεκέμβριος | J16: 10 | K16: 5 | L16: 33 | M16: 48 | P16: Δεκέμβριος | T16: 0
B17: ΣΥΝΟΛΑ 2014 | C17: =SUM(C5:C16) -> 507 | D17: =SUM(D5:D16) -> 529 | E17: 534 | F17: 1570 | I17: ΣΥΝΟΛΑ 2015 | J17: =SUM(J5:J16) -> 597 | K17: =SUM(K5:K16) -> 439 | L17: 599 | M17: 1635 | P17: ΣΥΝΟΛΑ 2016 | Q17: =SUM(Q5:Q16) -> 518 | R17: =SUM(R5:R16) -> 504 | S17: 536 | T17: 1558

Sheet Μουσείο Μαραθώνα
A1: ΜΟΥΣΕΙΟ ΜΑΡΑΘΩΝΑ
A3: 2014 | B3: ΕΙΣΙΤΗΡΙΑ (Αφορά Μουσείο & Αρχ. Χώρο) | H3: 2015 | I3: ΕΙΣΙΤΗΡΙΑ (Μουσείο) | O3: 2016 | P3: ΕΙΣΙΤΗΡΙΑ (Μουσείο)
C4: ΚΥΡΙΑ ΕΝΙΑΙΑ | D4: ΜΕΙΩΜΕΝΑ | E4: ΕΛΕΥΘΕΡΑΣ | F4: ΣΥΝΟΛΑ ΕΙΣΙΤΗΡΙΩΝ | J4: ΚΥΡΙΑ ΕΝΙΑΙΑ | K4: ΜΕΙΩΜΕΝΑ | L4: ΕΛΕΥΘΕΡΑΣ | M4: ΣΥΝΟΛΑ ΕΙΣΙΤΗΡΙΩΝ | Q4: ΚΥΡΙΑ ΕΝΙΑΙΑ | R4: ΜΕΙΩΜΕΝΑ | S4: ΕΛΕΥΘΕΡΑΣ | T4: ΣΥΝΟΛΑ ΕΙΣΙΤΗΡΙΩΝ
B5: Ιανουάριος | C5: 103 | D5: 40 | E5: 155 | F5: =SUM(C5:E5) -> 298 | I5: Ιανουάριος | J5: 48 | K5: 76 | L5: 118 | M5: =SUM(J5:L5) -> 242 | P5: Ιανουάριος | Q5: 75 | R5: 70 | S5: 155 | T5: =SUM(Q5:S5) -> 300
B6: Φεβρουάριος | C6: 133 | D6: 60 | E6: 158 | F6: 351 | I6: Φεβρουάριος | J6: 51 | K6: 2 | L6: 144 | M6: 197 | P6: Φεβρουάριος | Q6: 132 | R6: 107 | S6: 156 | T6: 395
B7: Μάρτιος | C7: 205 | D7: 140 | E7: 380 | F7: 725 | I7: Μάρτιος | J7: 70 | K7: 82 | L7: 200 | M7: 352 | P7: Μάρτιος | Q7: 84 | R7: 52 | S7: 116 | T7: 252
B8: Απρίλιος | C8: 304 | D8: 119 | E8: 506 | F8: 929 | I8: Απρίλιος | J8: 178 | K8: 141 | L8: 347 | M8: 666 | P8: Απρίλιος | Q8: 137 | R8: 119 | S8: 134 | T8: 390
B9: Μάιος | C9: 527 | D9: 567 | E9: 903 | F9: 1997 | I9: Μάιος | J9: 250 | K9: 225 | L9: 349 | M9: 824 | P9: Μάιος | Q9: 265 | R9: 91 | S9: 132 | T9: 488
B10: Ιούνιος | C10: 347 | D10: 160 | E10: 349 | F10: 856 | I10: Ιούνιος | J10: 285 | K10: 223 | L10: 165 | M10: 673 | P10: Ιούνιος | Q10: 245 | R10: 119 | S10: 114 | T10: 478
B11: Ιούλιος | C11: 462 | D11: 161 | E11: 173 | F11: 796 | I11: Ιούλιος | J11: 302 | K11: 49 | L11: 159 | M11: 510 | P11: Ιούλιος | Q11: 214 | R11: 32 | S11: 137 | T11: 383
B12: Αύγουστος | C12: 1516 | D12: 483 | E12: 1344 | F12: 3343 | I12: Αύγουστος | J12: 390 | K12: 72 | L12: 226 | M12: 688 | P12: Αύγουστος | Q12: 117 | R12: 69 | S12: 141 | T12: 327
B13: Σεπτέμβριος | C13: 724 | D13: 310 | E13: 117 | F13: 1151 | I13: Σεπτέμβριος | J13: 283 | K13: 64 | L13: 135 | M13: 482 | P13: Σεπτέμβριος | T13: 0
B14: Οκτώβριος | C14: 604 | D14: 324 | E14: 233 | F14: 1161 | I14: Οκτώβριος | J14: 206 | K14: 115 | L14: 216 | M14: 537 | P14: Οκτώβριος | T14: 0
B15: Νοέμβριος | C15: 289 | D15: 222 | E15: 231 | F15: 742 | I15: Νοέμβριος | J15: 142 | K15: 90 | L15: 5 | M15: 237 | P15: Νοέμβριος | T15: 0
B16: Δεκέμβριος | C16: 202 | D16: 139 | E16: 287 | F16: 628 | I16: Δεκέμβριος | J16: 82 | K16: 69 | L16: 59 | M16: 210 | P16: Δεκέμβριος | T16: 0
B17: ΣΥΝΟΛΑ 2014 | C17: =SUM(C5:C16) -> 5416 | D17: =SUM(D5:D16) -> 2725 | E17: 4836 | F17: 12977 | I17: ΣΥΝΟΛΑ 2015 | J17: =SUM(J5:J16) -> 2287 | K17: =SUM(K5:K16) -> 1208 | L17: 2123 | M17: 5618 | P17: ΣΥΝΟΛΑ 2016 | Q17: =SUM(Q5:Q16) -> 1269 | R17: =SUM(R5:R16) -> 659 | S17: 1085 | T17: 3013

Sheet Αρχ.Χώρος Μαραθώνα
A1: ΑΡΧΑΙΟΛΟΓΙΚΟΣ ΧΩΡΟΣ ΜΑΡΑΘΩΝΑ
A3: 2014 | B3: ΕΙΣΙΤΗΡΙΑ (Αφορά Μουσείο & Αρχ. Χώρο) | H3: 2015 | I3: ΕΙΣΙΤΗΡΙΑ (Αρχ. Χώρος) | O3: 2016 | P3: ΕΙΣΙΤΗΡΙΑ
C4: ΚΥΡΙΑ ΕΝΙΑΙΑ | D4: ΜΕΙΩΜΕΝΑ | E4: ΕΛΕΥΘΕΡΑΣ | F4: ΣΥΝΟΛΑ ΕΙΣΙΤΗΡΙΩΝ | J4: ΚΥΡΙΑ ΕΝΙΑΙΑ | K4: ΜΕΙΩΜΕΝΑ | L4: ΕΛΕΥΘΕΡΑΣ | M4: ΣΥΝΟΛΑ ΕΙΣΙΤΗΡΙΩΝ | Q4: ΚΥΡΙΑ ΕΝΙΑΙΑ | R4: ΜΕΙΩΜΕΝΑ | S4: ΕΛΕΥΘΕΡΑΣ | T4: ΣΥΝΟΛΑ ΕΙΣΙΤΗΡΙΩΝ
B5: Ιανουάριος | C5: 103 | D5: 40 | E5: 155 | F5: =SUM(C5:E5) -> 298 | I5: Ιανουάριος | J5: 100 | K5: 146 | L5: 193 | M5: =SUM(J5:L5) -> 439 | P5: Ιανουάριος | Q5: 178 | R5: 147 | S5: 186 | T5: =SUM(Q5:S5) -> 511
B6: Φεβρουάριος | C6: 133 | D6: 60 | E6: 158 | F6: 351 | I6: Φεβρουάριος | J6: 79 | K6: 41 | L6: 158 | M6: 278 | P6: Φεβρουάριος | Q6: 119 | R6: 71 | S6: 283 | T6: 473
B7: Μάρτιος | C7: 205 | D7: 140 | E7: 380 | F7: 725 | I7: Μάρτιος | J7: 139 | K7: 46 | L7: 471 | M7: 656 | P7: Μάρτιος | Q7: 180 | R7: 70 | S7: 174 | T7: 424
B8: Απρίλιος | C8: 304 | D8: 119 | E8: 506 | F8: 929 | I8: Απρίλιος | J8: 312 | K8: 143 | L8: 306 | M8: 761 | P8: Απρίλιος | Q8: 207 | R8: 149 | S8: 266 | T8: 622
B9: Μάιος | C9: 527 | D9: 567 | E9: 903 | F9: 1997 | I9: Μάιος | J9: 478 | K9: 316 | L9: 461 | M9: 1255 | P9: Μάιος | Q9: 199 | R9: 198 | S9: 244 | T9: 641
B10: Ιούνιος | C10: 347 | D10: 160 | E10: 349 | F10: 856 | I10: Ιούνιος | J10: 448 | K10: 278 | L10: 380 | M10: 1106 | P10: Ιούνιος | Q10: 207 | R10: 113 | S10: 156 | T10: 476
B11: Ιούλιος | C11: 462 | D11: 161 | E11: 173 | F11: 796 | I11: Ιούλιος | J11: 376 | K11: 60 | L11: 503 | M11: 939 | P11: Ιούλιος | Q11: 280 | R11: 71 | S11: 244 | T11: 595
B12: Αύγουστος | C12: 1516 | D12: 483 | E12: 1344 | F12: 3343 | I12: Αύγουστος | J12: 441 | K12: 46 | L12: 348 | M12: 835 | P12: Αύγουστος | Q12: 234 | R12: 107 | S12: 117 | T12: 458
B13: Σεπτέμβριος | C13: 724 | D13: 310 | E13: 117 | F13: 1151 | I13: Σεπτέμβριος | J13: 360 | K13: 126 | L13: 241 | M13: 727 | P13: Σεπτέμβριος | T13: 0
B14: Οκτώβριος | C14: 604 | D14: 324 | E14: 233 | F14: 1161 | I14: Οκτώβριος | J14: 331 | K14: 147 | L14: 292 | M14: 770 | P14: Οκτώβριος | T14: 0
B15: Νοέμβριος | C15: 289 | D15: 222 | E15: 231 | F15: 742 | I15: Νοέμβριος | J15: 114 | K15: 74 | L15: 133 | M15: 321 | P15: Νοέμβριος | T15: 0
B16: Δεκέμβριος | C16: 202 | D16: 139 | E16: 287 | F16: 628 | I16: Δεκέμβριος | J16: 65 | K16: 45 | L16: 123 | M16: 233 | P16: Δεκέμβριος | T16: 0
B17: ΣΥΝΟΛΑ 2014 | C17: =SUM(C5:C16) -> 5416 | D17: =SUM(D5:D16) -> 2725 | E17: 4836 | F17: 12977 | I17: ΣΥΝΟΛΑ 2015 | J17: =SUM(J5:J16) -> 3243 | K17: =SUM(K5:K16) -> 1468 | L17: 3609 | M17: 8320 | P17: ΣΥΝΟΛΑ 2016 | Q17: =SUM(Q5:Q16) -> 1604 | R17: =SUM(R5:R16) -> 926 | S17: 1670 | T17: 4200

Sheet Αρχ.Χώρος Αμφιαρείου
A1: ΑΡΧΑΙΟΛΟΓΙΚΟΣ ΧΩΡΟΣ ΑΜΦΙΑΡΕΙΟΥ
A3: 2014 | B3: ΕΙΣΙΤΗΡΙΑ | H3: 2015 | I3: ΕΙΣΙΤΗΡΙΑ | O3: 2016 | P3: ΕΙΣΙΤΗΡΙΑ
C4: ΚΥΡΙΑ ΕΝΙΑΙΑ | D4: ΜΕΙΩΜΕΝΑ | E4: ΕΛΕΥΘΕΡΑΣ | F4: ΣΥΝΟΛΑ ΕΙΣΙΤΗΡΙΩΝ | J4: ΚΥΡΙΑ ΕΝΙΑΙΑ | K4: ΜΕΙΩΜΕΝΑ | L4: ΕΛΕΥΘΕΡΑΣ | M4: ΣΥΝΟΛΑ ΕΙΣΙΤΗΡΙΩΝ | Q4: ΚΥΡΙΑ ΕΝΙΑΙΑ | R4: ΜΕΙΩΜΕΝΑ | S4: ΕΛΕΥΘΕΡΑΣ | T4: ΣΥΝΟΛΑ ΕΙΣΙΤΗΡΙΩΝ
B5: Ιανουάριος | C5: 54 | D5: 14 | E5: 28 | F5: =SUM(C5:E5) -> 96 | I5: Ιανουάριος | J5: 28 | K5: 86 | L5: 268 | M5: =SUM(J5:L5) -> 382 | P5: Ιανουάριος | Q5: 81 | R5: 17 | S5: 489 | T5: =SUM(Q5:S5) -> 587
B6: Φεβρουάριος | C6: 33 | D6: 49 | E6: 66 | F6: 148 | I6: Φεβρουάριος | J6: 61 | K6: 40 | L6: 356 | M6: 457 | P6: Φεβρουάριος | Q6: 49 | R6: 19 | S6: 1931 | T6: 1999
B7: Μάρτιος | C7: 93 | D7: 46 | E7: 259 | F7: 398 | I7: Μάρτιος | J7: 119 | K7: 33 | L7: 1021 | M7: 1173 | P7: Μάρτιος | Q7: 253 | R7: 101 | S7: 4931 | T7: 5285
B8: Απρίλιος | C8: 120 | D8: 63 | E8: 634 | F8: 817 | I8: Απρίλιος | J8: 289 | K8: 90 | L8: 2132 | M8: 2511 | P8: Απρίλιος | Q8: 25 | R8: 41 | S8: 798 | T8: 864
B9: Μάιος | C9: 145 | D9: 203 | E9: 371 | F9: 719 | I9: Μάιος | J9: 242 | K9: 105 | L9: 1876 | M9: 2223 | P9: Μάιος | Q9: 43 | R9: 134 | S9: 1071 | T9: 1248
B10: Ιούνιος | C10: 83 | D10: 103 | E10: 273 | F10: 459 | I10: Ιούνιος | J10: 93 | K10: 172 | L10: 1219 | M10: 1484 | P10: Ιούνιος | Q10: 53 | R10: 26 | S10: 431 | T10: 510
B11: Ιούλιος | C11: 54 | D11: 104 | E11: 414 | F11: 572 | I11: Ιούλιος | J11: 204 | K11: 70 | L11: 1567 | M11: 1841 | P11: Ιούλιος | Q11: 63 | R11: 12 | S11: 691 | T11: 766
B12: Αύγουστος | C12: 69 | D12: 59 | E12: 251 | F12: 379 | I12: Αύγουστος | J12: 75 | K12: 87 | L12: 903 | M12: 1065 | P12: Αύγουστος | Q12: 94 | R12: 7 | S12: 3192 | T12: 3293
B13: Σεπτέμβριος | C13: 56 | D13: 92 | E13: 178 | F13: 326 | I13: Σεπτέμβριος | J13: 87 | K13: 40 | L13: 631 | M13: 758 | P13: Σεπτέμβριος | T13: 0
B14: Οκτώβριος | C14: 35 | D14: 68 | E14: 262 | F14: 365 | I14: Οκτώβριος | J14: 46 | K14: 73 | L14: 736 | M14: 855 | P14: Οκτώβριος | T14: 0
B15: Νοέμβριος | C15: 43 | D15: 57 | E15: 132 | F15: 232 | I15: Νοέμβριος | J15: 51 | K15: 82 | L15: 1891 | M15: 2024 | P15: Νοέμβριος | T15: 0
B16: Δεκέμβριος | C16: 39 | D16: 32 | E16: 75 | F16: 146 | I16: Δεκέμβριος | J16: 85 | K16: 6 | L16: 705 | M16: 796 | P16: Δεκέμβριος | T16: 0
B17: ΣΥΝΟΛΑ 2014 | C17: =SUM(C5:C16) -> 824 | D17: =SUM(D5:D16) -> 890 | E17: 2943 | F17: 4657 | I17: ΣΥΝΟΛΑ 2015 | J17: =SUM(J5:J16) -> 1380 | K17: =SUM(K5:K16) -> 884 | L17: 13305 | M17: 15569 | P17: ΣΥΝΟΛΑ 2016 | Q17: =SUM(Q5:Q16) -> 661 | R17: =SUM(R5:R16) -> 357 | S17: 13534 | T17: 14552

Sheet Αρχ.Χώρος Ραμνούντα
A1: ΑΡΧΑΙΟΛΟΓΙΚΟΣ ΧΩΡΟΣ ΡΑΜΝΟΥΝΤΑ
A3: 2014 | B3: ΕΙΣΙΤΗΡΙΑ | H3: 2015 | I3: ΕΙΣΙΤΗΡΙΑ | O3: 2016 | P3: ΕΙΣΙΤΗΡΙΑ
C4: ΚΥΡΙΑ ΕΝΙΑΙΑ | D4: ΜΕΙΩΜΕΝΑ | E4: ΕΛΕΥΘΕΡΑΣ | F4: ΣΥΝΟΛΑ ΕΙΣΙΤΗΡΙΩΝ | J4: ΚΥΡΙΑ ΕΝΙΑΙΑ | K4: ΜΕΙΩΜΕΝΑ | L4: ΕΛΕΥΘΕΡΑΣ | M4: ΣΥΝΟΛΑ ΕΙΣΙΤΗΡΙΩΝ | Q4: ΚΥΡΙΑ ΕΝΙΑΙΑ | R4: ΜΕΙΩΜΕΝΑ | S4: ΕΛΕΥΘΕΡΑΣ | T4: ΣΥΝΟΛΑ ΕΙΣΙΤΗΡΙΩΝ
B5: Ιανουάριος | F5: =SUM(C5:E5) -> 0 | I5: Ιανουάριος | J5: 26 | K5: 10 | L5: 483 | M5: =SUM(J5:L5) -> 519 | P5: Ιανουάριος | Q5: 26 | R5: 10 | S5: 483 | T5: =SUM(Q5:S5) -> 519
B6: Φεβρουάριος | F6: 0 | I6: Φεβρουάριος | J6: 196 | K6: 51 | L6: 620 | M6: 867 | P6: Φεβρουάριος | Q6: 98 | R6: 51 | S6: 620 | T6: 769
B7: Μάρτιος | C7: 89 | D7: 50 | E7: 407 | F7: 546 | I7: Μάρτιος | J7: 63 | K7: 33 | L7: 591 | M7: 687 | P7: Μάρτιος | Q7: 63 | R7: 33 | S7: 591 | T7: 687
B8: Απρίλιος | C8: 117 | D8: 93 | E8: 509 | F8: 719 | I8: Απρίλιος | J8: 146 | K8: 99 | L8: 650 | M8: 895 | P8: Απρίλιος | Q8: 141 | R8: 99 | S8: 650 | T8: 890
B9: Μάιος | C9: 136 | D9: 90 | E9: 600 | F9: 826 | I9: Μάιος | J9: 166 | K9: 51 | L9: 570 | M9: 787 | P9: Μάιος | Q9: 103 | R9: 131 | S9: 558 | T9: 792
B10: Ιούνιος | C10: 124 | D10: 34 | E10: 700 | F10: 858 | I10: Ιούνιος | J10: 140 | K10: 92 | L10: 640 | M10: 872 | P10: Ιούνιος | Q10: 103 | R10: 44 | S10: 496 | T10: 643
B11: Ιούλιος | C11: 119 | D11: 8 | E11: 710 | F11: 837 | I11: Ιούλιος | J11: 149 | K11: 60 | L11: 541 | M11: 750 | P11: Ιούλιος | Q11: 27 | R11: 17 | S11: 506 | T11: 550
B12: Αύγουστος | C12: 168 | D12: 8 | E12: 680 | F12: 856 | I12: Αύγουστος | J12: 211 | K12: 23 | L12: 609 | M12: 843 | P12: Αύγουστος | Q12: 157 | R12: 16 | S12: 524 | T12: 697
B13: Σεπτέμβριος | C13: 171 | D13: 78 | E13: 940 | F13: 1189 | I13: Σεπτέμβριος | J13: 116 | K13: 26 | L13: 439 | M13: 581 | P13: Σεπτέμβριος | T13: 0
B14: Οκτώβριος | C14: 188 | D14: 165 | E14: 560 | F14: 913 | I14: Οκτώβριος | J14: 183 | K14: 82 | L14: 369 | M14: 634 | P14: Οκτώβριος | T14: 0
B15: Νοέμβριος | C15: 85 | D15: 14 | E15: 600 | F15: 699 | I15: Νοέμβριος | J15: 94 | K15: 56 | L15: 386 | M15: 536 | P15: Νοέμβριος | T15: 0
B16: Δεκέμβριος | C16: 30 | D16: 4 | E16: 510 | F16: 544 | I16: Δεκέμβριος | J16: 24 | K16: 2 | L16: 399 | M16: 425 | P16: Δεκέμβριος | T16: 0
B17: ΣΥΝΟΛΑ 2014 | C17: =SUM(C5:C16) -> 1227 | D17: =SUM(D5:D16) -> 544 | E17: 6216 | F17: 7987 | I17: ΣΥΝΟΛΑ 2015 | J17: =SUM(J5:J16) -> 1514 | K17: =SUM(K5:K16) -> 585 | L17: 6297 | M17: 8396 | P17: ΣΥΝΟΛΑ 2016 | Q17: =SUM(Q5:Q16) -> 718 | R17: =SUM(R5:R16) -> 401 | S17: 4428 | T17: 5547
